[Event "*** Titled Tuesday 3|2 Blitz"]
[Site "Chess.com"]
[Date "2016.03.01"]
[Round "2"]
[White "MITerryble"]
[Black "Aygehovit1992"]
[Result "1-0"]
[WhiteElo "2650"]
[BlackElo "2414"]
[TimeControl "180+2"]
[EndTime "17:21:09 PST"]
[Termination "MITerryble won by resignation"]

1. d4 {[%clk 0:03:01.9]} 1... Nf6 {[%clk 0:02:59.9]} 2. Nf3 {[%clk 0:03:03.2]}
2... g6 {[%clk 0:03:01.1]} 3. Bg5 {[%clk 0:03:03.9]} 3... Bg7 {[%clk 0:03:02]}
4. Nbd2 {[%clk 0:03:05.5]} 4... d5 {[%clk 0:03:03]} 5. c3 {[%clk 0:03:06.7]}
5... O-O {[%clk 0:03:04]} 6. e3 {[%clk 0:03:06.7]} 6... c5 {[%clk 0:03:05.2]} 7.
dxc5 {[%clk 0:03:07.3]} 7... a5 {[%clk 0:02:59.9]} 8. a4 {[%clk 0:03:06.4]} 8...
Nbd7 {[%clk 0:02:59.2]} 9. Nb3 {[%clk 0:03:06.7]} 9... Qc7 {[%clk 0:02:57.8]}
10. Qd4 {[%clk 0:03:07.2]} 10... e5 {[%clk 0:02:53.3]} 11. Qh4 {[%clk
0:03:07.7]} 11... h6 {[%clk 0:02:49.9]} 12. Bxh6 {[%clk 0:03:01.6]} 12... Re8
{[%clk 0:02:38]} 13. Bb5 {[%clk 0:02:55.6]} 13... Bxh6 {[%clk 0:02:00.2]} 14.
Qxh6 {[%clk 0:02:54.4]} 14... Re7 {[%clk 0:02:01.2]} 15. h4 {[%clk 0:02:41.2]}
15... Ng4 {[%clk 0:01:21]} 16. Qg5 {[%clk 0:02:40.6]} 16... Ndf6 {[%clk
0:01:14.9]} 17. h5 {[%clk 0:02:27.3]} 17... e4 {[%clk 0:01:06.2]} 18. hxg6
{[%clk 0:01:17.4]} 18... fxg6 {[%clk 0:01:06]} 19. Nfd4 {[%clk 0:01:07.8]} 19...
Kg7 {[%clk 0:00:28.2]} 20. O-O-O {[%clk 0:01:00]} 20... Bd7 {[%clk 0:00:24.5]}
21. f3 {[%clk 0:00:42]} 21... Qe5 {[%clk 0:00:08.9]} 22. Qxe5 {[%clk 0:00:27.3]}
22... Nxe5 {[%clk 0:00:09.9]} 23. Bxd7 {[%clk 0:00:26.3]} 23... Rxd7 {[%clk
0:00:09.4]} 24. Kc2 {[%clk 0:00:24.2]} 24... Re7 {[%clk 0:00:06.8]} 25. Nd2
{[%clk 0:00:20.4]} 25... exf3 {[%clk 0:00:03.8]} 26. gxf3 {[%clk 0:00:20.5]}
26... Nfd7 {[%clk 0:00:04.9]} 27. Rdg1 {[%clk 0:00:18.1]} 27... Kf6 {[%clk
0:00:04.5]} 28. N4b3 {[%clk 0:00:14.8]} 28... Rc8 {[%clk 0:00:04.7]} 29. f4
{[%clk 0:00:11]} 29... Nf7 {[%clk 0:00:04.5]} 30. Rg3 {[%clk 0:00:11.9]} 30...
Nxc5 {[%clk 0:00:05.6]} 31. Nxc5 {[%clk 0:00:13.8]} 31... Rxc5 {[%clk
0:00:06.7]} 32. Rhg1 {[%clk 0:00:15.7]} 32... Nh8 {[%clk 0:00:08]} 33. Nb3
{[%clk 0:00:16.3]} 33... Rc8 {[%clk 0:00:06.4]} 34. Nxa5 {[%clk 0:00:16.9]}
34... Rce8 {[%clk 0:00:07.5]} 35. Kd3 {[%clk 0:00:17]} 35... Re6 {[%clk
0:00:07.1]} 36. Nb3 {[%clk 0:00:17.8]} 36... Kf7 {[%clk 0:00:06.5]} 37. Nd4
{[%clk 0:00:18.1]} 37... Ra6 {[%clk 0:00:06.7]} 38. b3 {[%clk 0:00:18.3]} 38...
Rc8 {[%clk 0:00:05.7]} 39. f5 {[%clk 0:00:19.1]} 39... Kg7 {[%clk 0:00:03.7]}
40. fxg6 {[%clk 0:00:17.9]} 40... Nxg6 {[%clk 0:00:05.4]} 41. Nf5+ {[%clk
0:00:19]} 41... Kf7 {[%clk 0:00:04.2]} 42. Rxg6 {[%clk 0:00:18.8]} 1-0

[Event "*** Titled Tuesday 3|2 Blitz"]
[Site "Chess.com"]
[Date "2016.03.01"]
[Round "2"]
[White "yopino"]
[Black "IMRosen"]
[Result "0-1"]
[WhiteElo "2189"]
[BlackElo "2284"]
[TimeControl "180+2"]
[EndTime "17:21:34 PST"]
[Termination "IMRosen won by checkmate"]

1. e4 {[%clk 0:03:01.9]} 1... d5 {[%clk 0:02:59.8]} 2. exd5 {[%clk 0:03:02]}
2... Nf6 {[%clk 0:03:01.4]} 3. d4 {[%clk 0:03:02.1]} 3... Bg4 {[%clk 0:03:02.4]}
4. Nf3 {[%clk 0:03:00.7]} 4... Nxd5 {[%clk 0:03:01]} 5. Be2 {[%clk 0:03:01.7]}
5... g6 {[%clk 0:03:00.6]} 6. h3 {[%clk 0:03:01.5]} 6... Bxf3 {[%clk 0:03:00.1]}
7. Bxf3 {[%clk 0:03:03.4]} 7... c6 {[%clk 0:03:01.8]} 8. O-O {[%clk 0:03:02.1]}
8... Bg7 {[%clk 0:03:03]} 9. c3 {[%clk 0:03:02.1]} 9... O-O {[%clk 0:03:04.1]}
10. Re1 {[%clk 0:03:02.7]} 10... Nd7 {[%clk 0:03:04.4]} 11. Nd2 {[%clk
0:02:59.8]} 11... Re8 {[%clk 0:03:04.8]} 12. Nc4 {[%clk 0:02:59.7]} 12... Qc7
{[%clk 0:03:00.6]} 13. Bg5 {[%clk 0:02:55.9]} 13... e5 {[%clk 0:02:11.2]} 14.
dxe5 {[%clk 0:02:53.9]} 14... Nxe5 {[%clk 0:02:12.1]} 15. Nxe5 {[%clk
0:02:54.5]} 15... Rxe5 {[%clk 0:02:12.7]} 16. Qd2 {[%clk 0:02:47.4]} 16... Rae8
{[%clk 0:02:06.5]} 17. Bxd5 {[%clk 0:02:22.5]} 17... cxd5 {[%clk 0:02:06.4]} 18.
Be3 {[%clk 0:02:20.1]} 18... Qe7 {[%clk 0:01:57.5]} 19. Red1 {[%clk 0:02:16.4]}
19... a6 {[%clk 0:01:50.4]} 20. Qd3 {[%clk 0:02:11.6]} 20... Rf5 {[%clk
0:01:30.1]} 21. Rd2 {[%clk 0:02:08.3]} 21... Qh4 {[%clk 0:01:23.4]} 22. Rad1
{[%clk 0:02:07.4]} 22... Re4 {[%clk 0:01:17.4]} 23. Qc2 {[%clk 0:01:28.4]} 23...
Qh5 {[%clk 0:01:10]} 24. Qb3 {[%clk 0:00:51.9]} 24... d4 {[%clk 0:00:15.8]} 25.
cxd4 {[%clk 0:00:41.6]} 25... Rb5 {[%clk 0:00:16.7]} 26. Qc2 {[%clk 0:00:36.8]}
26... Qd5 {[%clk 0:00:17.2]} 27. Qc8+ {[%clk 0:00:33.1]} 27... Bf8 {[%clk
0:00:17.8]} 28. Bh6 {[%clk 0:00:33.8]} 28... Qd6 {[%clk 0:00:19.2]} 29. d5
{[%clk 0:00:31.3]} 29... Rbb4 {[%clk 0:00:11.1]} 30. a3 {[%clk 0:00:23.1]} 30...
Rbc4 {[%clk 0:00:11.9]} 31. Bxf8 {[%clk 0:00:23.9]} 31... Qxf8 {[%clk
0:00:11.2]} 32. Qxb7 {[%clk 0:00:25]} 32... Qd6 {[%clk 0:00:11.7]} 33. Qb3
{[%clk 0:00:19.6]} 33... h5 {[%clk 0:00:12.6]} 34. Qf3 {[%clk 0:00:17.6]} 34...
Kg7 {[%clk 0:00:12.8]} 35. Qg3 {[%clk 0:00:16.9]} 35... Rf4 {[%clk 0:00:12.4]}
36. Rd3 {[%clk 0:00:13.1]} 36... h4 {[%clk 0:00:12.7]} 37. Qe3 {[%clk
0:00:12.7]} 37... Rce4 {[%clk 0:00:14]} 38. Qd2 {[%clk 0:00:12.9]} 38... Rc4
{[%clk 0:00:14.3]} 39. Rc3 {[%clk 0:00:13.4]} 39... Rce4 {[%clk 0:00:13.9]} 40.
Rc6 {[%clk 0:00:13.2]} 40... Qd7 {[%clk 0:00:13.5]} 41. Qc3+ {[%clk 0:00:12.6]}
41... Kh7 {[%clk 0:00:11.3]} 42. d6 {[%clk 0:00:12.9]} 42... Re2 {[%clk
0:00:07]} 43. Rc7 {[%clk 0:00:12.9]} 43... Qf5 {[%clk 0:00:08]} 44. Rc8 {[%clk
0:00:12.5]} 44... f6 {[%clk 0:00:03.1]} 45. Rc7+ {[%clk 0:00:12.7]} 45... Kh6
{[%clk 0:00:04.6]} 46. Qc1 {[%clk 0:00:06.7]} 46... g5 {[%clk 0:00:05]} 47. d7
{[%clk 0:00:06.8]} 47... Rfxf2 {[%clk 0:00:06]} 48. d8=Q {[%clk 0:00:04.2]}
48... Rxg2+ {[%clk 0:00:07.3]} 49. Kh1 {[%clk 0:00:05.5]} 49... Rh2+ {[%clk
0:00:08.9]} 50. Kg1 {[%clk 0:00:06.7]} 50... Reg2# {[%clk 0:00:08.6]} 0-1

[Event "*** Titled Tuesday 3|2 Blitz"]
[Site "Chess.com"]
[Date "2016.03.01"]
[Round "2"]
[White "MinhGTrAn"]
[Black "maciek_92"]
[Result "1-0"]
[WhiteElo "2674"]
[BlackElo "2451"]
[TimeControl "180+2"]
[EndTime "17:21:55 PST"]
[Termination "MinhGTrAn won by resignation"]

1. d4 {[%clk 0:03:01.9]} 1... Nf6 {[%clk 0:03:00.6]} 2. c4 {[%clk 0:03:03.6]}
2... e6 {[%clk 0:03:02]} 3. Nc3 {[%clk 0:03:05.2]} 3... Bb4 {[%clk 0:03:02.9]}
4. e3 {[%clk 0:03:06.9]} 4... O-O {[%clk 0:03:03.3]} 5. Ne2 {[%clk 0:03:08.5]}
5... Re8 {[%clk 0:03:04.5]} 6. a3 {[%clk 0:03:10.1]} 6... Bf8 {[%clk 0:03:05.6]}
7. Ng3 {[%clk 0:03:11]} 7... d5 {[%clk 0:03:05.1]} 8. Be2 {[%clk 0:03:11.1]}
8... Nbd7 {[%clk 0:03:02.2]} 9. O-O {[%clk 0:03:10.6]} 9... c6 {[%clk
0:03:01.3]} 10. b4 {[%clk 0:03:10]} 10... a5 {[%clk 0:02:57.7]} 11. b5 {[%clk
0:03:08.7]} 11... Nb6 {[%clk 0:02:57]} 12. bxc6 {[%clk 0:03:08.2]} 12... bxc6
{[%clk 0:02:57.1]} 13. c5 {[%clk 0:03:08.8]} 13... Nbd7 {[%clk 0:02:57.9]} 14.
f4 {[%clk 0:03:09.4]} 14... Ba6 {[%clk 0:02:42.8]} 15. Bd2 {[%clk 0:03:10.7]}
15... Qc7 {[%clk 0:02:34.8]} 16. Qa4 {[%clk 0:03:09.7]} 16... h5 {[%clk
0:02:19.6]} 17. Rfb1 {[%clk 0:02:58.9]} 17... h4 {[%clk 0:02:18.5]} 18. Bxa6
{[%clk 0:02:59.3]} 18... Rxa6 {[%clk 0:02:19]} 19. Nge2 {[%clk 0:02:57.6]} 19...
Be7 {[%clk 0:02:11.6]} 20. Rb2 {[%clk 0:02:57.9]} 20... Rb8 {[%clk 0:01:56.3]}
21. Rab1 {[%clk 0:02:58.7]} 21... Rxb2 {[%clk 0:01:56.5]} 22. Rxb2 {[%clk
0:03:00.6]} 22... g5 {[%clk 0:01:53.2]} 23. Qb3 {[%clk 0:02:27.3]} 23... Ra7
{[%clk 0:01:38.4]} 24. g3 {[%clk 0:01:46]} 24... hxg3 {[%clk 0:01:33]} 25. hxg3
{[%clk 0:01:47.9]} 25... g4 {[%clk 0:01:28]} 26. Kf2 {[%clk 0:01:46.1]} 26...
Kg7 {[%clk 0:01:25.7]} 27. Ke1 {[%clk 0:01:44.2]} 27... Qd8 {[%clk 0:01:25.1]}
28. Kd1 {[%clk 0:01:42.8]} 28... Qh8 {[%clk 0:01:24.3]} 29. Kc1 {[%clk 0:01:43]}
29... a4 {[%clk 0:01:13.9]} 30. Qd1 {[%clk 0:01:41.4]} 30... Qh7 {[%clk
0:01:09.9]} 31. Rb4 {[%clk 0:01:36.4]} 31... Bxc5 {[%clk 0:01:04.4]} 32. dxc5
{[%clk 0:01:17.4]} 32... Nxc5 {[%clk 0:01:06.3]} 33. Qc2 {[%clk 0:01:02.9]}
33... Qh1+ {[%clk 0:00:41.1]} 34. Kb2 {[%clk 0:00:53]} 34... Qf1 {[%clk
0:00:30.9]} 35. Ka2 {[%clk 0:00:39.3]} 35... Qg2 {[%clk 0:00:20.4]} 36. Rb1
{[%clk 0:00:24.1]} 36... Kg8 {[%clk 0:00:18.4]} 37. Rg1 {[%clk 0:00:21.1]} 37...
Qf2 {[%clk 0:00:15.3]} 38. Rd1 {[%clk 0:00:18.9]} 38... Nfe4 {[%clk 0:00:15.7]}
39. Nxe4 {[%clk 0:00:09.2]} 39... Nxe4 {[%clk 0:00:17.6]} 40. Nd4 {[%clk
0:00:10.7]} 40... c5 {[%clk 0:00:15.2]} 41. Nc6 {[%clk 0:00:11.8]} 41... Rc7
{[%clk 0:00:16.2]} 42. Ne5 {[%clk 0:00:13.2]} 42... Qxg3 {[%clk 0:00:17.1]} 43.
Bc1 {[%clk 0:00:12.4]} 43... Qf2 {[%clk 0:00:17.1]} 44. Qxf2 {[%clk 0:00:12.8]}
44... Nxf2 {[%clk 0:00:19]} 45. Rf1 {[%clk 0:00:11.8]} 45... g3 {[%clk
0:00:17.2]} 46. Rg1 {[%clk 0:00:07.9]} 46... Ne4 {[%clk 0:00:18.5]} 47. Nf3
{[%clk 0:00:05.2]} 47... f6 {[%clk 0:00:19.5]} 48. Nd2 {[%clk 0:00:05.3]} 48...
Nc3+ {[%clk 0:00:18]} 49. Kb2 {[%clk 0:00:06.4]} 49... Ne2 {[%clk 0:00:19.2]}
50. Rg2 {[%clk 0:00:07.9]} 50... Rb7+ {[%clk 0:00:20.7]} 51. Kc2 {[%clk
0:00:08.9]} 51... Nxc1 {[%clk 0:00:21.7]} 52. Rxg3+ {[%clk 0:00:10.5]} 52... Kf7
{[%clk 0:00:23.2]} 53. Kxc1 {[%clk 0:00:12]} 53... e5 {[%clk 0:00:24.6]} 54.
fxe5 {[%clk 0:00:12.5]} 54... fxe5 {[%clk 0:00:26]} 55. e4 {[%clk 0:00:11.5]}
55... dxe4 {[%clk 0:00:18.2]} 56. Nxe4 {[%clk 0:00:13.4]} 56... c4 {[%clk
0:00:19.3]} 57. Nd6+ {[%clk 0:00:14.5]} 1-0

[Event "*** Titled Tuesday 3|2 Blitz"]
[Site "Chess.com"]
[Date "2016.03.01"]
[Round "2"]
[White "LADIESGET2KNOWME"]
[Black "djgwards"]
[Result "1-0"]
[WhiteElo "2373"]
[BlackElo "2213"]
[TimeControl "180+2"]
[EndTime "17:22:32 PST"]
[Termination "LADIESGET2KNOWME won by resignation"]

1. d4 {[%clk 0:03:01.9]} 1... d5 {[%clk 0:02:57.7]} 2. Nc3 {[%clk 0:03:02.9]}
2... Nf6 {[%clk 0:02:55.2]} 3. Bg5 {[%clk 0:03:03.8]} 3... Nbd7 {[%clk 0:02:49]}
4. Nf3 {[%clk 0:03:04.2]} 4... h6 {[%clk 0:02:49.2]} 5. Bh4 {[%clk 0:03:04.8]}
5... e6 {[%clk 0:02:38.9]} 6. e3 {[%clk 0:03:02.9]} 6... Be7 {[%clk 0:02:17.2]}
7. Bd3 {[%clk 0:03:03.8]} 7... c5 {[%clk 0:02:14.5]} 8. O-O {[%clk 0:03:04.1]}
8... c4 {[%clk 0:02:10.3]} 9. Be2 {[%clk 0:03:04.9]} 9... O-O {[%clk 0:01:57.4]}
10. Nb1 {[%clk 0:03:00.4]} 10... b5 {[%clk 0:01:57.4]} 11. Nbd2 {[%clk 0:03:01]}
11... a5 {[%clk 0:01:53.9]} 12. c3 {[%clk 0:03:02.1]} 12... Ba6 {[%clk
0:01:53.6]} 13. a3 {[%clk 0:03:00]} 13... b4 {[%clk 0:01:50.4]} 14. axb4 {[%clk
0:03:01]} 14... axb4 {[%clk 0:01:51.7]} 15. Ne5 {[%clk 0:02:57.7]} 15... Nxe5
{[%clk 0:01:47.5]} 16. dxe5 {[%clk 0:02:59.6]} 16... Nd7 {[%clk 0:01:45.8]} 17.
Bxe7 {[%clk 0:02:58.5]} 17... Qxe7 {[%clk 0:01:47.3]} 18. Nf3 {[%clk 0:02:57.3]}
18... bxc3 {[%clk 0:01:30.9]} 19. bxc3 {[%clk 0:02:59.2]} 19... Nc5 {[%clk
0:01:31.8]} 20. Nd4 {[%clk 0:02:52.8]} 20... Qc7 {[%clk 0:01:32.2]} 21. f4
{[%clk 0:02:49.7]} 21... Rab8 {[%clk 0:01:25.8]} 22. Qc2 {[%clk 0:02:40.7]}
22... Rb6 {[%clk 0:01:22.9]} 23. Rfb1 {[%clk 0:02:36.7]} 23... Rfb8 {[%clk
0:01:22.1]} 24. h3 {[%clk 0:02:12.7]} 24... Bc8 {[%clk 0:01:19.5]} 25. Kh2
{[%clk 0:02:11.6]} 25... Bd7 {[%clk 0:01:19.1]} 26. Bf3 {[%clk 0:01:48]} 26...
Ba4 {[%clk 0:01:11.1]} 27. Qc1 {[%clk 0:01:43.7]} 27... Nd3 {[%clk 0:01:11.2]}
28. Qf1 {[%clk 0:01:42.3]} 28... Bd7 {[%clk 0:00:55.2]} 29. Be2 {[%clk
0:01:12.2]} 29... Nxe5 {[%clk 0:00:53.4]} 30. Rxb6 {[%clk 0:01:05.5]} 30... Rxb6
{[%clk 0:00:50.4]} 31. fxe5 {[%clk 0:01:05.7]} 31... Qxe5+ {[%clk 0:00:51.7]}
32. Qf4 {[%clk 0:01:06.7]} 32... f6 {[%clk 0:00:40.5]} 33. Ra7 {[%clk
0:00:49.1]} 33... Rd6 {[%clk 0:00:25.3]} 34. Bh5 {[%clk 0:00:43.8]} 34... g5
{[%clk 0:00:15.3]} 35. Qxe5 {[%clk 0:00:36.6]} 35... fxe5 {[%clk 0:00:16.8]} 36.
Nf3 {[%clk 0:00:38.2]} 36... e4 {[%clk 0:00:16.7]} 37. Ne5 {[%clk 0:00:36.8]}
37... Bb5 {[%clk 0:00:16.6]} 38. Bf7+ {[%clk 0:00:31]} 38... Kg7 {[%clk
0:00:17.8]} 39. Be8+ {[%clk 0:00:28.6]} 39... Kf6 {[%clk 0:00:17.8]} 40. Ng4+
{[%clk 0:00:29.8]} 40... Kf5 {[%clk 0:00:18.9]} 41. Bxb5 {[%clk 0:00:30.8]}
41... e5 {[%clk 0:00:18]} 42. Bd7+ {[%clk 0:00:20.1]} 42... Kg6 {[%clk
0:00:12.5]} 43. Nxe5+ {[%clk 0:00:21.1]} 43... Kf6 {[%clk 0:00:10.7]} 44. Ng4+
{[%clk 0:00:21.8]} 44... Ke7 {[%clk 0:00:11.9]} 45. Bf5+ {[%clk 0:00:17.5]}
45... Kf8 {[%clk 0:00:12.8]} 46. Ne5 {[%clk 0:00:17.3]} 46... Ke8 {[%clk
0:00:09.7]} 47. Kg3 {[%clk 0:00:10.9]} 47... h5 {[%clk 0:00:09.9]} 48. h4 {[%clk
0:00:11.5]} 48... g4 {[%clk 0:00:10.1]} 49. Kf4 {[%clk 0:00:12.5]} 49... d4
{[%clk 0:00:08.6]} 50. exd4 {[%clk 0:00:12.7]} 50... e3 {[%clk 0:00:09.6]} 51.
Kxe3 {[%clk 0:00:13.6]} 51... Rf6 {[%clk 0:00:10.6]} 52. Ke4 {[%clk 0:00:14.4]}
52... g3 {[%clk 0:00:10.8]} 53. d5 {[%clk 0:00:12.9]} 53... Kd8 {[%clk
0:00:09.7]} 54. Nc6+ {[%clk 0:00:12.7]} 54... Ke8 {[%clk 0:00:09.8]} 55. Be6
{[%clk 0:00:12.1]} 55... Kf8 {[%clk 0:00:05.9]} 56. Ne5 {[%clk 0:00:10.7]} 56...
Ke8 {[%clk 0:00:04.2]} 57. Ra8+ {[%clk 0:00:08]} 57... Ke7 {[%clk 0:00:05.1]}
58. Ra7+ {[%clk 0:00:07.9]} 58... Kd6 {[%clk 0:00:05.4]} 59. Nxc4+ {[%clk
0:00:09.4]} 59... Kc5 {[%clk 0:00:06.3]} 60. Ne3 {[%clk 0:00:11.3]} 60... Rf2
{[%clk 0:00:06.4]} 61. Ra5+ {[%clk 0:00:10.8]} 61... Kd6 {[%clk 0:00:07.5]} 62.
Ra6+ {[%clk 0:00:12.1]} 62... Kc7 {[%clk 0:00:08.3]} 63. d6+ {[%clk 0:00:13]}
63... Kb7 {[%clk 0:00:08.3]} 64. d7 {[%clk 0:00:14.5]} 64... Rd2 {[%clk
0:00:09.2]} 65. Ra4 {[%clk 0:00:14]} 65... Kc7 {[%clk 0:00:09.6]} 66. Rd4 {[%clk
0:00:14.7]} 1-0

[Event "*** Titled Tuesday 3|2 Blitz"]
[Site "Chess.com"]
[Date "2016.03.01"]
[Round "2"]
[White "hermionegrangermagic"]
[Black "Miguelito"]
[Result "1/2-1/2"]
[WhiteElo "2297"]
[BlackElo "2287"]
[TimeControl "180+2"]
[EndTime "17:22:54 PST"]
[Termination "Game drawn - insufficient material"]

1. e4 {[%clk 0:03:01.9]} 1... c5 {[%clk 0:03:00]} 2. Nf3 {[%clk 0:03:02.3]} 2...
e6 {[%clk 0:03:01.1]} 3. b3 {[%clk 0:03:00.1]} 3... b6 {[%clk 0:03:00.1]} 4. Bb2
{[%clk 0:02:59.6]} 4... Bb7 {[%clk 0:03:01.7]} 5. Nc3 {[%clk 0:03:00.3]} 5...
Nc6 {[%clk 0:03:02.1]} 6. d4 {[%clk 0:02:53.6]} 6... cxd4 {[%clk 0:03:02]} 7.
Nxd4 {[%clk 0:02:53.6]} 7... a6 {[%clk 0:02:57.6]} 8. Qd2 {[%clk 0:02:50.3]}
8... Qc7 {[%clk 0:02:58.2]} 9. O-O-O {[%clk 0:02:47]} 9... Nf6 {[%clk 0:02:57]}
10. f3 {[%clk 0:02:42]} 10... Bd6 {[%clk 0:02:50.9]} 11. Ndb5 {[%clk 0:02:36.2]}
11... axb5 {[%clk 0:02:46.1]} 12. Nxb5 {[%clk 0:02:36.6]} 12... Rxa2 {[%clk
0:02:48]} 13. Nxc7+ {[%clk 0:02:36.2]} 13... Bxc7 {[%clk 0:02:49.9]} 14. Kb1
{[%clk 0:02:37.1]} 14... Rxb2+ {[%clk 0:02:46.1]} 15. Kxb2 {[%clk 0:02:37.5]}
15... Ke7 {[%clk 0:02:46.1]} 16. g4 {[%clk 0:02:33.2]} 16... Be5+ {[%clk
0:02:43.8]} 17. Kb1 {[%clk 0:02:33.1]} 17... Ra8 {[%clk 0:02:43.8]} 18. c3
{[%clk 0:02:29.7]} 18... Nb4 {[%clk 0:02:31.8]} 19. g5 {[%clk 0:02:16.8]} 19...
Nxe4 {[%clk 0:02:32.2]} 20. Qxd7+ {[%clk 0:01:29.2]} 20... Kf8 {[%clk
0:02:32.3]} 21. fxe4 {[%clk 0:00:37]} 21... Bxe4+ {[%clk 0:02:21.4]} 22. Bd3
{[%clk 0:00:37.8]} 22... Bxc3 {[%clk 0:01:38]} 23. Qd6+ {[%clk 0:00:20.6]} 23...
Kg8 {[%clk 0:01:37.5]} 24. Qxb4 {[%clk 0:00:18.7]} 24... Bxd3+ {[%clk
0:01:35.9]} 25. Rxd3 {[%clk 0:00:20.1]} 25... Bxb4 {[%clk 0:01:37.3]} 26. Rc1
{[%clk 0:00:20]} 26... g6 {[%clk 0:01:30.2]} 27. Rc7 {[%clk 0:00:20]} 27... Bc5
{[%clk 0:01:23.4]} 28. Rdd7 {[%clk 0:00:19.6]} 28... Rf8 {[%clk 0:01:23.7]} 29.
Kc2 {[%clk 0:00:19.9]} 29... Be3 {[%clk 0:01:22.7]} 30. h4 {[%clk 0:00:18.4]}
30... Bf2 {[%clk 0:01:23.6]} 31. Rc4 {[%clk 0:00:16.8]} 31... Kg7 {[%clk
0:01:24.1]} 32. Kd3 {[%clk 0:00:15.7]} 32... h5 {[%clk 0:01:25]} 33. Rf4 {[%clk
0:00:15.6]} 33... Bg3 {[%clk 0:01:25]} 34. Rb4 {[%clk 0:00:15.6]} 34... Bf2
{[%clk 0:01:25]} 35. Ke2 {[%clk 0:00:16]} 35... Bc5 {[%clk 0:01:25.7]} 36. Rf4
{[%clk 0:00:15.6]} 36... e5 {[%clk 0:01:24.6]} 37. Rf6 {[%clk 0:00:13.4]} 37...
Bd4 {[%clk 0:01:21.5]} 38. b4 {[%clk 0:00:13.9]} 38... Kg8 {[%clk 0:01:22.5]}
39. b5 {[%clk 0:00:14.1]} 39... Kg7 {[%clk 0:01:23.8]} 40. Kd2 {[%clk
0:00:12.5]} 40... Kg8 {[%clk 0:01:24.7]} 41. Rc6 {[%clk 0:00:12.9]} 41... Ra8
{[%clk 0:01:24]} 42. Rcc7 {[%clk 0:00:12.7]} 42... Rf8 {[%clk 0:01:17.2]} 43.
Kd3 {[%clk 0:00:13.2]} 43... Bf2 {[%clk 0:01:17.6]} 44. Rb7 {[%clk 0:00:13.8]}
44... Kg7 {[%clk 0:01:15.7]} 45. Ke4 {[%clk 0:00:13.8]} 45... Bd4 {[%clk
0:01:16.5]} 46. Rxd4 {[%clk 0:00:12.1]} 46... exd4 {[%clk 0:01:17.3]} 47. Kxd4
{[%clk 0:00:14]} 47... Rd8+ {[%clk 0:01:16.4]} 48. Ke5 {[%clk 0:00:14.9]} 48...
Re8+ {[%clk 0:01:17.4]} 49. Kd6 {[%clk 0:00:15.7]} 49... Re4 {[%clk 0:01:16.8]}
50. Rxb6 {[%clk 0:00:16.1]} 50... Rxh4 {[%clk 0:01:17.5]} 51. Rc6 {[%clk
0:00:16.6]} 51... Rg4 {[%clk 0:01:13.8]} 52. Rc5 {[%clk 0:00:16]} 52... h4
{[%clk 0:01:12.2]} 53. b6 {[%clk 0:00:16.8]} 53... h3 {[%clk 0:01:07.3]} 54. b7
{[%clk 0:00:14]} 54... Rb4 {[%clk 0:01:05.4]} 55. Kc7 {[%clk 0:00:12]} 55... f6
{[%clk 0:00:43.6]} 56. gxf6+ {[%clk 0:00:04.8]} 56... Kxf6 {[%clk 0:00:44.5]}
57. Rc3 {[%clk 0:00:06.3]} 57... g5 {[%clk 0:00:40.1]} 58. Rxh3 {[%clk
0:00:06.2]} 58... g4 {[%clk 0:00:39.5]} 59. Rh8 {[%clk 0:00:04.8]} 59... Kg5
{[%clk 0:00:38.7]} 60. b8=Q {[%clk 0:00:05]} 60... Rxb8 {[%clk 0:00:39.2]} 61.
Kxb8 {[%clk 0:00:05.6]} 61... g3 {[%clk 0:00:40.7]} 62. Kc7 {[%clk 0:00:07]}
62... Kf4 {[%clk 0:00:41.9]} 63. Kd6 {[%clk 0:00:07.9]} 63... g2 {[%clk
0:00:42.5]} 64. Rg8 {[%clk 0:00:08.4]} 64... Kf3 {[%clk 0:00:44]} 65. Ke5 {[%clk
0:00:08.6]} 65... Kf2 {[%clk 0:00:45.4]} 66. Kf4 {[%clk 0:00:09.6]} 66... Kf1
{[%clk 0:00:40.4]} 67. Kf3 {[%clk 0:00:07.5]} 67... g1=Q {[%clk 0:00:41.9]} 68.
Rxg1+ {[%clk 0:00:07.4]} 68... Kxg1 {[%clk 0:00:43.1]} 1/2-1/2